{"text_format":"1","workbook":"xlsx","n_sheets":2,"sheets":["Отчет (2)","Муниципальные программы"],"not_rendered":{"charts":0,"images":0,"macros":0,"external_links":0,"defined_names":2,"comments":0,"pivot_tables":0},"unopened":[],"bounds":{"document_bytes":16777216,"sheet_cells":100000,"rows_first":2000,"rows_last":500,"rows_between":2000,"halvings":0,"cell_chars":16384,"cell_head_chars":4096},"cells_cut":0,"cells_raw":0,"read":"whole","date_system":"1900"}

{"sheet":"Отчет (2)","index":0,"n_rows":39,"n_cols":21,"rows_kept":39,"cut":false,"hidden":false,"merged":[[5,5,8,5],[0,0,0,20],[1,0,1,20],[3,0,3,20],[4,13,4,14],[4,15,4,17],[5,0,8,0],[5,1,8,1],[5,2,8,2],[5,3,8,3],[5,4,8,4],[5,16,7,17],[5,18,7,20],[2,3,2,17],[10,0,14,0],[10,1,14,1],[10,3,14,3],[10,4,14,4],[10,5,14,5],[10,18,14,18],[10,19,14,19],[10,20,14,20],[5,6,8,6],[5,7,8,7],[5,8,8,8],[5,9,7,10],[5,11,7,12],[5,13,7,15],[38,15,38,18],[31,0,31,9],[32,0,32,9],[32,11,32,13],[32,15,32,18],[33,0,33,9],[34,0,34,9],[34,11,34,13],[34,15,34,18],[36,15,36,18],[31,15,31,18],[33,15,33,18],[35,15,35,18],[37,15,37,18]]}
["Отчет субъекта РФ"]
["о ходе выполнения региональных программ (подпрограмм) и внепрограммных мероприятий по повышению безопасности дорожного движения"]
[null,null,null,"Владимирская область"]
["(наименование субъекта РФ)"]
["Дата отчета: 08.07.2020 ",null,null,"MS Excel 2010",null,null,null,null,null,null,null,null,null,"Период отчета: ",null,"За 6 месяцев 2020 года",null,null,null,null,"Тыс. рублей"]
["№ п.п.","Код пр.","Наименование мероприятия","Направление ФЦП","№ мероприятия по ФЦП","Источник финансирования (РБ, МБ, ВБИ)","Запланиро-вано в программе/ подпрограмме на реализацию мероприятия на отчетный год","Бюджетные назначения на отчетный год","Лимиты бюджетных обязательств на отчетный год","Стоимость работ по контрактам на отчетный год",null,"Количество контрактов,  на отчетный год",null,"Фактически профинансировано (кассовые расходы) на реализацию мероприятия ",null,null,"Фактически освоено средств (по актам сдачи-приемки) на реализацию мероприятия",null,"Фактическое выполнение мероприятия программы (подпрограммы)\n"]
[]
[]
[null,null,null,null,null,null,null,null,null,"Всего, включая контракты прошлых лет","Всего, по контрактам, заключенным за отчетный год","Всего, включая контракты прошлых лет","Количество контрактов, заключенных в отчетном году","Всего с начала года","Всего за квартал","По кредиторской задолженности","Всего с начала года","Всего за квартал","Количе-ственный пока-затель","Ед. измере-ния","Краткое описание результатов выполнения (или причин не выполнения) мероприятия программы (подпрограммы)"]
["1","2","3","4","5","6","7","8","9","10","11","12","13","14","15","16","17","18","19","20","21"]
[null,null,"Итого по всем мероприятиям",null,null,null,{"$f":"G13+G14+G15","v":320668},{"$f":"H13+H14+H15","v":320668},320668,89496.3,83983.6,70,55,65329.714,45040.113999999994,0,65016.9,44727.299999999996]
[null,null,"в том числе:"]
[null,null,"за счет средств регионального бюджета",null,null,null,{"$f":"G16+G17+G18+G19+G20+G21+G22+G31","v":320473},{"$f":"H16+H17+H18+H19+H20+H21+H22+H31","v":320473},320473,89496.3,83983.6,70,55,65329.714,45040.113999999994,0,65016.9,44727.299999999996]
[null,null,"за счет средств местных бюджетов"]
[null,null,"за счет внебюджетных источников",null,null,null,{"$f":"G23+G24+G25+G26+G27+G28+G29+G30","v":195},{"$f":"H23+H24+H25+H26+H27+H28+H29+H30","v":195},195,0,0,0,0,0,0,0,0,0]
[1,1,"Проведение ежегодных конкурсов профессионального мастерства среди водителей различных категорий транспортных средств","2","14","РБ",100,100,100,0,0,0,0,0,0,0,0,0,null,null,"Выполнение мероприятия не осуществлялось "]
[2,1,"Ежегодное проведение областного конкурса-фестиваля ЮИД \"Безопасное колесо\"\n","3","13","РБ",18,18,18,0,0,0,0,0,0,0,0,0,null,null,"Выполнение мероприятия не осуществлялось "]
[3,1,"Ежегодное участие во Всероссийском конкурсе-фестивале ЮИД \"Безопасное колесо\"\r\n","3","13","РБ",17,17,17,0,0,0,0,0,0,0,0,0,null,null,"Выполнение мероприятия не осуществлялось "]
[4,1,"Ежегодное участие во Всероссийском чемпионате ЮАШ по юношескому автомногоборью\n","3","13","РБ",15,15,15,0,0,0,0,0,0,0,0,0,null,null,"Выполнение мероприятия не осуществлялось "]
[5,1,"Ежегодное проведение областного смотра-конкурса на лучшую общеобразовательную школу по организации профилактики детского дорожно-транспортного травматизма\n","3","13","РБ",10,10,10,0,0,0,0,0,0,0,0,0,null,null,"Выполнение мероприятия не осуществлялось "]
[6,1,"Субсидии на обеспечение профилактики детского дорожно-транспортного травматизма","3","19","РБ",1100,1100,1100,0,0,0,0,590.61400000000003,590.61400000000003,0,277.8,277.8,null,null,"Оснащение техническими средствами обучения, оборудованием и учебно-методическими материалами 2 детских автогородков"]
[7,1,"Расходы на обеспечение деятельности (оказание услуг) государственных учреждений",null,null,"РБ",309744,309744,309744,89496.3,83983.6,70,55,64739.1,44449.499999999993,0,64739.1,44449.499999999993,null,null,"ГКУ ВО \"Центр безопасности дорожного движения\" выполнена  частичная оплата услуг:\n- по закупке ГСМ;                                            - закупке 1 автомобиля                                                                                             - связи по пересылке почтовых отправлений;                                                  - по предоставлению доступа, подключению и обслуживанию 25 шт.VPN каналов;\n- связи необходимой для работы передвижных комплексов фото-видеофиксации нарушений ПДД,\n- по предоставлению доступа к сервису взаимодействия ПО \"Ангел\" с информационной системой ФССП России, -технич.обслуж.и ремонта системы для контроля за дорожным движением и фото видеофиксации нарушений ПДД на территории Владимирской области;             - закупке 7 мониторинговых комплектов по реагированию на сигнал тревоги;           - закупке 18 копмлектов специальной сигнальной одежды для техников. "]
[8,1,"Ежегодное проведение областного конкурса-фестиваля ЮИД «Безопасное колесо» (ВОА -16 тыс. и ДОСААФ -15 тыс.)","3","0","ВБИ",31,31,31,0,0,0,0,0,0,0,0,0,null,null,"Выполнение мероприятия не осуществлялось "]
[9,1,"Ежегодное участие во Всероссийском конкурсе-фестивале ЮИД \"Безопасное колесо\"\r (ВОА)\n","3","0","ВБИ",10,10,10,0,0,0,0,0,0,0,0,0,null,null,"Выполнение мероприятия не осуществлялось "]
[10,1,"Проведение ежегодных конкурсов профессионального мастерства среди водителей различных категорий транспортных средств (ВОА - 4 тыс. ДОСААФ -20 тыс.)","2","14","ВБИ",24,24,24,0,0,0,0,0,0,0,0,0,null,null,"Выполнение мероприятия не осуществлялось "]
[11,1,"Стимулирование моральной и материальной заинтересованности активных членов общественных формирований, участвующих в мероприятиях по профилактике дорожно-транспортных происшествий (ВОА)","0","0","ВБИ",10,10,10,0,0,0,0,0,0,0,0,0,null,null,"Выполнение мероприятия не осуществлялось "]
[12,1,"Оборудование в средних школах уголков безопасности дорожного движения (ВОА)\n","0","0","ВБИ",5,5,5,0,0,0,0,0,0,0,0,0,null,null,"Выполнение мероприятия не осуществлялось "]
[13,1,"Ежегодное участие во Всероссийском чемпионате ЮАШ по юношескому автомногоборью (ДОСААФ)","3","0","ВБИ",5,5,5,0,0,0,0,0,0,0,0,0,null,null,"Выполнение мероприятия не осуществлялось "]
[14,1,"Обучение детей правилам поведения на дороге.  Проведение открытых уроков в автошколах области (ДОСААФ)","0","0","ВБИ",10,10,10,0,0,0,0,0,0,0,0,0,null,null,"Выполнение мероприятия не осуществлялось "]
[15,1,"Организация обучения специальности водителя учащихся общеобразовательных школ в соответствии с договором Минобрнауки (ДОСААФ)\n","0","0","ВБИ",100,100,100,0,0,0,0,0,0,0,0,0,null,null,"Выполнение мероприятия не осуществлялось "]
[16,1,"Оснащение медицинских организаций автомобилями скорой медицинской помощи класса \"В\" для оказания скорой медицинской помощи пациентам, пострадавшим при дорожно-транспортных происшествиях и медицинским оборудованием для оснащения отделений реанимации и палат интенсивной терапии травмотологических центров\n","6","12","РБ",9469,9469,9469,0,0,0,0,0,0,0,0,0,null,null,"15.05.2020 проведены торги заключен контракт на приобретение 2-х автомобилей СМП класса \"С\""]
["Директор Департамента транспорта и дорожного хозяйства Владимирской области",null,null,null,null,null,null,null,null,null,null,null,null,null,null,"А.Д. Косилов"]
["(Должность лица администрации субъекта РФ, ответственного за реализацию федеральной целевой программы)",null,null,null,null,null,null,null,null,null,null,"Подпись",null,null,null,"(Ф.И.О.)"]
["заведующий сектором отдела транспорта",null,null,null,null,null,null,null,null,null,null,null,null,null,null,"И.В. Погодин"]
["(Должность лица, ответственного за составление формы)",null,null,null,null,null,null,null,null,null,null,"Подпись",null,null,null,"(Ф.И.О.)"]
[null,null,null,null,null,null,null,null,null,null,null,null,null,null,null,"deptrans-trans@avo.ru"]
[null,null,null,null,null,null,null,null,null,null,null,null,null,null,null,"(адрес электронной почты)"]
[null,null,null,null,null,null,null,null,null,null,null,null,null,null,null,"8(4922) 45-84-50"]
[null,null,null,null,null,null,null,null,null,null,null,null,null,null,null,"(контактный телефон)"]

{"sheet":"Муниципальные программы","index":1,"n_rows":23,"n_cols":5,"rows_kept":23,"cut":false,"hidden":false,"merged":[[0,0,0,1]]}
["Список региональных программ",null,"Приложение к отчету"]
["Код пр.","Наименование региональной программы (подпрограммы), муниципальной программы (подпрограммы), направленной на повышение уровня безопасности дорожного движения","Наименование нормативно-правового акта, утвердившего программу, с учетом последней редакции","Начало программы","Окончание программы"]
[1,"Региональная программа «Повышение безопасности дорожного движения во Владимирской области в 2014 - 2020 годах» ","Утверждена постановлением Губернатора Владимирской области от 20.02.2014 № 148 «Об утверждении государственной программы Владимирской области «Повышение безопасности дорожного движения во Владимирской области в 2014 - 2020 годах»",2014,2020]
[2,"Муниципальная подпрограмма «Повышение безопасности дорожного движения на территории города Владимира» программы «Дорожное хозяйство города Владимира» ","утверждена постановлением администрации города Владимира от 23.10.2015 № 3733",2016,2021]
[3,"  «Жилищно-коммунальное хозяйство и благоустройство округа Мурома на 2019-2021 годы» (Подпрограмма «Обеспечение безопасности дорожного движения и транспортного обслуживания населения на территории округа Муром на 2019-2021 годы»).","утверждена постановлением администрации округа Муром от 14.09.2018 № 674",2018,2021]
[4,"Подпрограмма «Обеспечение безопасности дорожного движения» в рамках муниципальной программы «Развитие транспортной системы и транспортной доступности города Коврова»","утверждена постановлением администрации г. Коврова от 31.10.2018 г. № 2687",2019,2021]
[5,"«Повышение безопасности дорожного движения в Александровском районе в 2014-2020 годах»","утверждена постановлением главы администрации  Александровского района от 16.10.2013г.  № 3087 ",2014,2020]
[6,"Муниципальная подпрограмма «Профилактика дорожно-транспортного травматизма в ЗАТО г. Радужный Владимирской области» муниципальной программы «Обеспечение общественного порядка и профилактики правонарушений ЗАТО г. Радужный Владимирской области»","утверждена постановлением администрации ЗАТО     г. Радужный Владимирской области от 12.10. 2016 г. № 1584 ",2017,2021]
[7,"Муниципальная программа «Повышение безопасности дорожного движения на территории муниципального образования город Юрьев-Польский на 2014-2020 годы»","утверждена постановлением администрации муниципального образования город Юрьев-Польский Юрьев-Польского района от 27.06.2014 № 138",2014,2020]
[8,"Муниципальная  программа «Развитие сети автомобильных дорог общего пользования местного значения муниципального образования Кольчугинский район»","утверждена постановлением администрации Кольчугинского района от 27.12.2016 № 1143",2017,2021]
[9,"Муниципальная программа «Повышение безопасности дорожного движения в городе Суздале на период до 2020 года»","утверждена постановлением администрации муниципального образования города Суздаля от 28.10.2015 г. № 13",2016,2020]
[10,"Муниципальная программа «Обеспечение безопасности дорожного движения на территории муниципального образования город Собинка на 2014-2020 гг.»","утверждена постановлением администрации г.Собинки от 23.06.2014 года № 257",2014,2020]
[11,"Муниципальная программа «Обеспечение безопасности дорожного движения на территории муниципального образования город Вязники на 2020-2022 годы»","утверждена постановлением администрации муниципального образования Вязниковский район Владимирской области от 16.12.2019 № 1403",2017,2022]
[13,"Муниципальная программа «Повышение безопасности дорожного движения в Гусь-Хрустальном районе на 2013-2020 годы»","утверждена постановлением главы Гусь-Хрустального района от 15.11.2013 №1869",2014,2020]
[14,"Муниципальная программа «Обеспечение безопасности дорожного движения в Петушинском районе»","утверждена постановлением администрации Петушинского района от 28.09.2018 №1907 ",2019,2021]
[15,"Муниципальная программа «Повышение безопасности дорожного движения в муниципальном образовании городское поселение город Киржач в 2014-2020 годах»","утверждена постановлением главы г.Киржач от 25.10.2013 № 842 ",2014,2020]
[16,"Муниципальная программа «Повышение безопасности дорожного движения в  Киржачском районе на 2017-2020 годы»","утверждена постановлением администрации Киржачского района от 08.09.2016 № 1019 ",2017,2020]
[17,"Муниципальная программа «Обеспечение безопасности дорожного движения на территории Гороховецкого района на 2017-2020 годы»","утверждена постановлением администрации Гороховецкого района от 08.12.2016 № 1681",2017,2020]
[18,"Муниципальная программа «Повышение безопасности дорожного движения в Селивановском районе в 2017 - 2022 годах»","утверждена постановлением администрации Селивановского района от 26.09.2016 №615",2017,2022]
[19,"Муниципальная программа «Обеспечение безопасности дорожного движения в Камешковском районе на 2017 - 2020 годы»","утверждена постановлением администрации района от 17.03.2017 № 430",2017,2020]
[20,"Муниципальная подпрограмма «Повышение безопасности дорожного движения в Судогодском районе  на 2015 - 2020 годы» муниципальной программы МО «Судогодский район» «Дорожное хозяйство Судогодского района на 2015-2020 годы»","утверждена постановлением администрации МО «Судогодский район» от 11.08.2015 г.  № 1279",2015,2020]
[21,"Муниципальная программа \"Повышение безопасности дорожного  движения в  Меленковском районе в 2016 - 2020 годах\", утвержденная постановлением главы  Меленковского района от 14.11.2014 г. № 2655","утверждена постановлением главы  Меленковского района от 14.11.2014 г. № 2655",2016,2020]
[22,"Муниципальная программа «Дорожное хозяйство Ковровского района на 2014-2020 годы»","утверждена постановлением администрации Ковровского района от 05.05.2014 г. №489 ",2014,2020]